bitfinex/quotes_SOLUSD_20250219
["timestamp","ask_amount","ask_price","bid_price","bid_amount"]
[1739927913412,15.6982671,167.74,167.69,5.9633]
[1739927913747,15.6982671,167.76,167.69,21.6615671]
[1739927916226,15.6982671,167.76,167.68,86.06]
[1739927916227,15.6982671,167.74,167.68,107.7218671]
[1739927916745,15.6982671,167.76,167.7,15.6982671]
[1739927917441,15.6982671,167.75,167.69,21.6613671]
[1739927917643,15.6982671,167.75,167.69,5.9631]
[1739927917836,15.6982671,167.75,167.69,21.6613671]
[1739927918535,15.6982671,167.77,167.71,15.6982671]
[1739927918745,82.7,167.78,167.72,15.6982671]
[1739927919229,98.3982671,167.78,167.72,15.6982671]
[1739927919429,15.6982671,167.75,167.71,8.1899]
[1739927919630,15.6982671,167.75,167.69,5.9633]
[1739927919941,98.3982671,167.78,167.72,15.6982671]
[1739927920151,82.7,167.78,167.72,15.6982671]
[1739927920353,15.6982671,167.74,167.69,86.8633]
[1739927920537,15.6982671,167.74,167.69,5.9633]
[1739927920740,15.6982671,167.72,167.67,7.6327]
[1739927920956,15.6982671,167.68,167.66,0.063]
[1739927921233,15.6982671,167.67,167.66,0.063]
[1739927921437,21.6622671,167.67,167.66,0.063]
[1739927921867,1.0,167.66,167.61,0.03]
[1739927922196,15.6982671,167.62,167.61,0.03]
[1739927922375,1.0,167.62,167.61,0.03]
[1739927922540,1.11919667,167.62,167.55,0.03]
[1739927922739,135.61903402,167.63,167.55,0.03]
[1739927922942,1.6369,167.65,167.55,0.03]
[1739927922943,15.6982671,167.57,167.55,0.03]
[1739927923696,16.81725154,167.56,167.55,0.03]
[1739927923992,15.6982671,167.56,167.55,0.03]
[1739927924357,16.6982671,167.56,167.55,0.03]
[1739927924561,1.0,167.56,167.55,0.03]
[1739927924794,39.67682843,167.56,167.55,0.03]
[1739927925258,39.67682843,167.56,167.55,0.0001]
[1739927925259,33.7640799,167.56,167.55,0.0001]
[1739927925463,38.7320799,167.56,167.55,0.0001]
[1739927925773,37.7320799,167.56,167.55,0.0001]
[1739927926079,1.0,167.52,167.46,14.8271282]
[1739927926280,25.2649799,167.5,167.46,14.8271282]
[1739927926586,1.0,167.49,167.46,14.8271282]
[1739927926793,25.2649799,167.47,167.46,14.8271282]
[1739927927992,38.67682843,167.47,167.46,14.8271282]
[1739927928195,38.67682843,167.47,167.36,5.3]
[1739927928196,1.0,167.45,167.35,94.7]
[1739927928403,25.2649799,167.39,167.35,100.6754]
[1739927928611,25.2649799,167.4,167.35,100.6754]
[1739927928810,25.2649799,167.41,167.35,100.6754]
[1739927929404,26.38528788,167.41,167.35,100.6754]
[1739927929580,25.2649799,167.43,167.37,25.2649799]
[1739927929777,107.9649799,167.43,167.37,25.2649799]
[1739927930509,82.7,167.43,167.37,25.2649799]
[1739927931015,82.7,167.43,167.38,25.2649799]
[1739927931220,82.7,167.43,167.35,115.6141]
[1739927931511,82.7,167.43,167.39,25.2649799]
[1739927931683,82.7,167.43,167.38,5.9744]
[1739927931887,82.7,167.43,167.38,31.2393799]
[1739927932994,107.9649799,167.43,167.36,5.9751]
[1739927933325,107.9649799,167.43,167.37,25.2649799]
[1739927933915,82.7,167.43,167.38,25.2649799]
[1739927935119,82.7,167.43,167.39,5.974]
[1739927935295,82.7,167.43,167.39,31.2389799]
[1739927936123,82.7,167.43,167.41,25.2649799]
[1739927936427,82.7,167.43,167.39,5.974]
[1739927936428,25.2649799,167.45,167.39,5.974]
[1739927936585,1.12016086,167.44,167.36,5.9751]
[1739927936785,82.7,167.43,167.38,25.2649799]
[1739927937229,82.7,167.43,167.39,5.974]
[1739927937814,82.7,167.43,167.39,31.2389799]
[1739927940337,82.7,167.43,167.4,25.2649799]
[1739927940505,82.7,167.43,167.38,25.2649799]
[1739927941129,82.7,167.43,167.39,25.2649799]
[1739927941515,82.7,167.43,167.4,25.2649799]
[1739927941828,82.7,167.43,167.42,25.2649799]
[1739927942028,82.7,167.47,167.42,25.2649799]
[1739927942252,82.7,167.5,167.46,25.2649799]
[1739927942436,82.7,167.5,167.48,25.2649799]
[1739927942747,82.7,167.5,167.49,25.2649799]
[1739927942913,82.7,167.55,167.49,25.2649799]
[1739927943106,25.2649799,167.53,167.47,36.4761799]
[1739927943432,82.7,167.55,167.51,25.2649799]
[1739927943639,82.7,167.58,167.53,25.2649799]
[1739927943813,1.11911871,167.57,167.47,107.0392]
[1739927944014,82.7,167.56,167.47,5.9712]
[1739927944237,1.11951109,167.55,167.48,5.24]
[1739927944418,1.11951109,167.55,167.48,11.2105]
[1739927945023,26.38449099,167.55,167.49,25.2649799]
[1739927945223,82.7,167.54,167.49,25.2649799]
[1739927945435,107.9649799,167.54,167.48,36.4754799]
[1739927946314,82.7,167.54,167.49,25.2649799]
[1739927947544,82.7,167.54,167.49,31.2352799]
[1739927947749,25.2649799,167.57,167.5,25.2649799]
[1739927947952,82.7,167.58,167.56,25.2649799]
[1739927948121,82.7,167.6,167.57,25.2649799]
[1739927948316,82.7,167.62,167.58,25.2649799]
[1739927948730,82.763,167.64,167.6,25.2649799]
[1739927948916,82.763,167.64,167.61,25.2649799]
[1739927949116,1.11873138,167.63,167.58,25.2649799]
[1739927949650,115.1121224,167.64,167.58,25.2649799]
[1739927950423,115.1121224,167.64,167.58,31.2321799]
[1739927950643,115.1121224,167.64,167.58,25.2649799]
[1739927951214,25.2649799,167.63,167.57,31.2323799]
[1739927951951,115.1121224,167.64,167.58,25.2649799]
[1739927952337,89.8471425,167.64,167.57,25.2649799]
[1739927952518,25.2649799,167.63,167.57,25.2649799]
[1739927952944,82.7,167.62,167.57,25.2649799]
[1739927953131,82.7,167.62,167.57,31.2324799]
[1739927954457,82.7,167.62,167.58,25.2649799]
[1739927955721,82.763,167.62,167.58,25.2649799]
[1739927956052,82.763,167.62,167.57,25.2649799]
[1739927956537,82.763,167.62,167.58,25.2649799]
[1739927956739,82.763,167.62,167.57,5.9673]
[1739927956941,82.763,167.62,167.53,96.3479]
[1739927956942,15.76784497,167.58,167.53,94.74]
[1739927957159,16.88700584,167.58,167.53,100.7089]
[1739927957528,15.76784497,167.56,167.53,94.74]
[1739927957831,15.76784497,167.55,167.53,94.74]
[1739927958035,15.76784497,167.54,167.53,94.74]
[1739927958239,98.46784497,167.54,167.53,94.74]
[1739927958446,104.43654497,167.54,167.53,94.74]
[1739927959035,82.7,167.54,167.53,94.74]
[1739927960149,98.46784497,167.54,167.53,94.74]
[1739927960452,82.7,167.54,167.53,94.74]
[1739927961455,107.95609613,167.54,167.53,94.74]
[1739927962258,82.7,167.54,167.53,94.74]
[1739927962427,82.7,167.54,167.53,125.96509613]
[1739927962624,82.7,167.59,167.53,125.96509613]
[1739927962852,82.7,167.61,167.56,25.25609613]
[1739927963034,82.7,167.61,167.57,25.25609613]
[1739927963241,0.063,167.62,167.59,25.25609613]
[1739927963631,82.763,167.62,167.57,25.25609613]
[1739927964028,82.763,167.62,167.54,9.74631494]
[1739927964029,82.763,167.62,167.58,25.25609613]
[1739927964673,82.763,167.62,167.58,31.22319613]
[1739927967058,82.763,167.62,167.58,25.25609613]
[1739927967441,82.763,167.62,167.58,31.22329613]
[1739927968040,82.763,167.62,167.58,25.25609613]
[1739927969151,82.763,167.62,167.58,31.22329613]
[1739927970270,0.063,167.62,167.59,25.25609613]
[1739927970771,0.063,167.62,167.58,31.22329613]
[1739927973766,0.063,167.62,167.59,25.25609613]
[1739927974062,0.063,167.62,167.61,25.25609613]
[1739927975773,0.063,167.62,167.61,31.22229613]
[1739927977873,0.063,167.64,167.61,86.8662]
[1739927978171,0.063,167.64,167.62,25.25609613]
[1739927979275,0.063,167.64,167.62,31.22159613]
[1739927979799,0.063,167.64,167.62,5.9655]
[1739927980374,0.063,167.64,167.62,31.22159613]
[1739927980543,0.063,167.64,167.62,21.72571546]
[1739927983470,0.063,167.64,167.63,15.76021546]
[1739927985183,0.063,167.64,167.63,21.72571546]
[1739927986686,0.063,167.67,167.63,36.63941546]
[1739927986980,0.063,167.67,167.66,15.76021546]
[1739927987298,0.063,167.67,167.66,21.72461546]
[1739927988769,0.0001,167.67,167.66,21.72461546]
[1739927988982,0.0001,167.67,167.66,35.13646399]
[1739927989164,0.0001,167.67,167.66,21.72461546]
[1739927991992,0.0001,167.67,167.66,131.79667945]
[1739927992367,82.763,167.79,167.69,20.0]
[1739927992568,82.763,167.79,167.73,15.76021546]
[1739927992863,82.763,167.79,167.73,21.72181546]
[1739927993465,0.063,167.79,167.76,15.76021546]
[1739927994824,15.82321546,167.79,167.73,102.62181546]
[1739927995006,0.063,167.79,167.74,15.76021546]
[1739927996382,15.76021546,167.77,167.71,21.72281546]
[1739927996981,15.76021546,167.77,167.7,94.68]
[1739927996982,15.76021546,167.76,167.7,116.40311546]
[1739927997187,15.76021546,167.76,167.7,110.44021546]
[1739927997511,15.76021546,167.75,167.7,94.68]
[1739927997802,98.46021546,167.74,167.7,94.68]
[1739928000397,104.42181546,167.74,167.7,94.68]
[1739928000592,98.46021546,167.74,167.7,94.68]
[1739928000795,82.7,167.74,167.71,15.76021546]
[1739928000983,82.763,167.79,167.73,5.9619]
[1739928001185,82.763,167.79,167.73,21.72211546]
[1739928001390,82.763,167.79,167.75,15.76021546]
[1739928001608,0.063,167.79,167.73,5.9619]
[1739928001800,0.063,167.79,167.74,15.76021546]
[1739928001999,15.76021546,167.77,167.72,4.96]
[1739928002192,15.76021546,167.74,167.7,175.58]
[1739928002391,15.76021546,167.74,167.69,5.963]
[1739928002704,15.76021546,167.74,167.68,26.68381546]
[1739928002903,15.76021546,167.75,167.69,15.76021546]
[1739928003076,15.76021546,167.75,167.69,21.72331546]
[1739928003278,15.76021546,167.73,167.68,4.96]
[1739928003910,15.76021546,167.72,167.66,94.66]
[1739928004114,15.76021546,167.68,167.66,94.66]
[1739928004595,82.7,167.67,167.66,94.66]
[1739928004794,98.46021546,167.67,167.64,0.03]
[1739928005087,15.76021546,167.65,167.64,0.03]
[1739928005615,89.78301523,167.66,167.64,0.03]
[1739928005616,98.46021546,167.66,167.64,0.03]
[1739928006110,82.7,167.66,167.64,0.03]
[1739928006620,98.46021546,167.72,167.65,15.76021546]
[1739928006918,82.7,167.72,167.69,15.76021546]
[1739928007226,0.063,167.74,167.71,15.76021546]
[1739928007509,0.063,167.74,167.69,5.9632]
[1739928007510,0.063,167.74,167.72,15.76021546]
[1739928007687,0.063,167.74,167.73,15.76021546]
[1739928009618,0.063,167.74,167.73,21.72211546]
[1739928010006,0.063,167.74,167.72,15.76021546]
[1739928010312,0.063,167.74,167.66,15.76021546]
[1739928010313,15.76021546,167.73,167.66,15.76021546]
[1739928010513,15.76021546,167.72,167.66,15.76021546]
[1739928010988,15.76021546,167.73,167.66,15.76021546]
[1739928011189,0.063,167.74,167.7,15.76021546]
[1739928011394,0.063,167.74,167.68,5.9637]
[1739928011395,0.063,167.74,167.72,15.76021546]
[1739928011592,0.063,167.74,167.73,15.76021546]
[1739928012607,0.063,167.74,167.73,25.1820433]
[1739928013508,0.063,167.74,167.73,112.0439433]
[1739928018701,0.063,167.74,167.73,86.8619]
[1739928018903,0.063,167.74,167.73,112.0439433]
[1739928020723,0.063,167.79,167.74,13.41184853]
[1739928020899,0.063,167.79,167.78,25.1820433]
[1739928021104,0.063,167.79,167.78,30.1220433]
[1739928022423,0.063,167.79,167.78,36.0821433]
[1739928023293,0.063,167.79,167.78,116.9821433]
[1739928025624,0.063,167.79,167.78,112.0421433]
[1739928027804,0.063,167.79,167.78,206.6421433]
[1739928032952,0.063,167.79,167.78,220.05399183]
[1739928033128,0.063,167.79,167.78,206.6421433]
[1739928034745,0.063,167.79,167.78,197.18814958]
[1739928037343,0.063,167.79,167.78,203.16514958]
[1739928037650,0.063,167.79,167.78,197.18814958]
[1739928039429,0.063,167.79,167.78,94.6]
[1739928039750,15.79104958,167.79,167.78,94.6]
[1739928040251,0.063,167.79,167.78,94.6]
[1739928040820,0.063,167.79,167.78,110.32804958]
[1739928041823,0.063,167.79,167.78,116.28814958]
[1739928042234,0.063,167.79,167.78,21.68814958]
[1739928044357,0.063,167.79,167.75,94.6]
[1739928044554,15.79104958,167.79,167.75,94.6]
[1739928047230,15.72804958,167.77,167.75,94.6]
[1739928047431,15.72804958,167.76,167.75,94.6]
[1739928048038,15.72804958,167.77,167.75,94.6]
[1739928049881,82.7,167.78,167.75,100.561]
[1739928050047,82.7,167.78,167.75,116.28904958]
[1739928050542,82.7,167.78,167.75,94.6]
[1739928050753,104.38844958,167.78,167.75,94.6]
[1739928051665,82.7,167.78,167.75,94.6]
[1739928052282,0.063,167.79,167.75,94.6]
[1739928052446,0.063,167.79,167.78,15.72804958]
[1739928052956,0.063,167.79,167.78,96.62804958]
[1739928053842,0.063,167.79,167.78,102.58814958]
[1739928058190,0.063,167.81,167.78,102.58814958]
[1739928058360,0.063,167.81,167.8,15.72804958]
[1739928058556,0.063,167.81,167.8,96.62804958]
[1739928058989,0.063,167.81,167.8,102.58744958]
[1739928062464,0.063,167.84,167.83,15.72804958]
[1739928063059,0.0001,167.84,167.83,102.58644958]
[1739928063600,0.0001,167.84,167.83,115.99829811]
[1739928065501,0.0001,167.84,167.83,138.18424769]
[1739928065989,0.063,167.91,167.83,145.16124769]
[1739928066208,0.063,167.91,167.9,15.72804958]
[1739928067489,0.063,167.91,167.9,21.68394958]
[1739928070723,0.0001,167.91,167.9,102.58394958]
[1739928071307,0.0001,167.91,167.9,21.68394958]
[1739928071497,0.0001,167.91,167.89,21.68414958]
[1739928072421,0.0001,167.91,167.9,15.72804958]
[1739928072726,0.0001,167.91,167.9,21.68394958]
[1739928073489,0.0001,167.91,167.9,115.99579811]
[1739928073897,0.0001,167.91,167.9,102.58394958]
[1739928075217,0.0001,167.91,167.89,5.9562]
[1739928075411,0.0001,167.91,167.9,15.72804958]
[1739928075736,0.0001,167.93,167.92,33.41184853]
[1739928075911,0.0001,167.94,167.93,13.41184853]
[1739928076118,0.0001,167.94,167.93,18.21184853]
[1739928076303,0.03,167.96,167.93,18.21184853]
[1739928076304,0.0001,167.96,167.95,33.41184853]
[1739928076509,0.0001,167.96,167.95,49.13989811]
[1739928076728,0.063,168.01,167.95,49.13989811]
[1739928076729,0.063,168.01,167.96,13.41184853]
[1739928076909,0.063,168.01,168.0,29.13989811]
[1739928077104,0.063,168.01,168.0,204.57989811]
[1739928077820,0.0001,168.01,168.0,204.57989811]
[1739928078018,0.0001,168.02,168.01,19.97804853]
[1739928078342,0.0001,168.02,168.01,116.60609811]
[1739928078943,0.0001,168.02,168.01,122.55809811]
[1739928082217,0.03,168.08,168.04,20.0]
[1739928082551,0.03,168.08,168.07,29.13989811]
[1739928082848,0.03,168.08,168.06,15.72804958]
[1739928083016,0.03,168.08,168.05,20.52804958]
[1739928083653,0.03,168.08,168.06,15.72804958]
[1739928085039,0.03,168.08,168.05,10.7503]
[1739928085040,15.75804958,168.08,168.02,21.67934958]
[1739928085343,15.75804958,168.08,168.01,85.7]
[1739928085344,15.72804958,168.06,168.01,85.7]
[1739928085524,15.72804958,168.05,168.01,80.9]
[1739928085721,15.72804958,168.06,168.01,80.9]
[1739928086108,15.72804958,168.04,168.0,99.403]
[1739928087428,15.72804958,168.02,168.0,94.603]
[1739928087632,15.72804958,168.03,168.0,94.603]
[1739928088331,15.72804958,168.01,168.0,94.603]
[1739928089109,98.42804958,168.02,168.0,94.603]
[1739928089742,82.7,168.02,168.0,94.603]
[1739928089949,82.7,168.04,168.0,110.33104958]
[1739928090140,82.7,168.04,168.0,116.28334958]
[1739928090340,82.7,168.04,168.01,15.72804958]
[1739928091624,1.5528,168.07,168.01,21.67974958]
[1739928091823,82.73,168.08,168.03,15.72804958]
[1739928092849,0.03,168.08,168.04,15.72804958]
[1739928093319,0.03,168.08,168.02,101.42804958]
[1739928093320,15.75804958,168.08,168.02,101.42804958]
[1739928093652,15.72804958,168.07,168.02,80.9]
[1739928094140,15.75804958,168.08,168.02,96.62804958]
[1739928094338,0.03,168.08,168.04,15.72804958]
[1739928095167,0.03,168.08,168.06,15.72804958]
[1739928095742,0.03,168.08,168.07,21.67794958]
[1739928096128,0.03,168.08,168.06,15.72804958]
[1739928096328,0.03,168.08,168.06,21.67824958]
[1739928096816,0.03,168.08,168.07,15.72804958]
[1739928097920,0.03,168.08,168.07,21.67794958]
[1739928098627,0.03,168.08,168.07,26.45794958]
[1739928100350,0.03,168.08,168.07,4.78]
[1739928100917,0.03,168.08,168.07,15.72804958]
[1739928101116,0.03,168.08,168.06,21.67814958]
[1739928101321,0.03,168.08,168.06,15.72804958]
[1739928101546,0.03,168.08,168.05,4.78]
[1739928104975,0.03,168.08,168.03,116.13924958]
[1739928105267,0.03,168.08,168.03,120.91924958]
[1739928105862,0.03,168.08,168.04,15.72804958]
[1739928107249,0.03,168.08,168.04,21.67884958]
[1739928109076,0.03,168.08,168.04,5.9508]
[1739928109372,0.03,168.08,168.04,21.67884958]
[1739928112656,0.03,168.08,168.04,5.9508]
[1739928113466,15.72804958,168.06,168.03,94.46]
[1739928113693,15.72804958,168.05,168.03,94.46]
[1739928114873,15.72804958,168.06,168.03,94.46]
[1739928115375,21.67824958,168.06,168.03,94.46]
[1739928115874,15.72804958,168.05,168.03,94.46]
[1739928116541,21.67824958,168.06,168.03,94.46]
[1739928116742,98.42804958,168.07,168.03,94.46]
[1739928117257,104.37794958,168.07,168.03,94.46]
[1739928118366,82.7,168.07,168.03,94.46]
[1739928118667,82.7,168.07,168.03,100.4113]
[1739928118867,0.03,168.08,168.03,100.4113]
[1739928119459,15.72804958,168.07,168.03,94.46]
[1739928119852,15.72804958,168.07,168.02,86.9145]
[1739928120068,21.70764958,168.08,168.02,86.9145]
[1739928120468,15.72804958,168.05,168.02,0.063]
[1739928121569,82.7,168.06,168.03,15.72804958]
[1739928121741,0.03,168.08,168.03,15.72804958]
[1739928122370,0.03,168.08,168.03,21.67904958]
[1739928125178,0.03,168.08,168.04,15.72804958]
[1739928125554,0.03,168.08,168.05,5.9506]
[1739928125958,0.03,168.08,168.05,21.67864958]
[1739928127078,0.03,168.08,168.04,21.67894958]
[1739928127662,0.03,168.08,168.05,15.72804958]
[1739928128080,0.03,168.08,168.05,20.50804958]
[1739928128963,0.03,168.08,168.06,15.72804958]
[1739928129165,0.03,168.08,168.06,21.67824958]
[1739928131488,0.03,168.08,168.06,5.9502]
[1739928131857,0.03,168.08,168.06,21.67824958]
[1739928132488,0.03,168.08,168.06,5.9502]
[1739928134468,0.03,168.08,168.05,99.24]
[1739928134787,0.03,168.08,168.05,105.1905]
[1739928135084,0.03,168.08,168.05,100.4105]
[1739928136984,0.03,168.08,168.05,94.46]
[1739928137497,0.03,168.08,168.05,100.4104]
[1739928138990,0.03,168.08,168.05,5.9504]
[1739928141895,0.03,168.08,168.05,15.98447824]
[1739928142695,0.03,168.08,168.05,10.03407824]
[1739928142899,0.03,168.08,168.06,5.95]
[1739928144101,0.03,168.08,168.06,15.98407824]
[1739928145898,0.03,168.08,168.06,5.95]
[1739928149908,10.03407824,168.07,168.03,94.46]
[1739928150076,10.03407824,168.04,168.03,94.46]
[1739928151708,10.03407824,168.05,168.03,94.46]
[1739928152675,82.73,168.08,168.03,104.49407824]
[1739928152887,0.03,168.08,168.05,10.03407824]
[1739928153409,0.03,168.08,168.04,10.03407824]
[1739928153609,0.03,168.08,168.03,110.44517824]
[1739928153779,10.06407824,168.08,168.03,94.46]
[1739928154803,16.01357824,168.08,168.03,94.46]
[1739928155105,10.03407824,168.07,168.03,94.46]
[1739928159010,0.03,168.08,168.03,110.44527824]
[1739928159377,0.03,168.08,168.05,10.03407824]
[1739928159916,0.03,168.08,168.06,5.9502]
[1739928170694,0.03,168.08,168.04,15.98497824]
[1739928171018,0.03,168.08,168.04,5.9509]
[1739928173131,10.06407824,168.08,168.03,175.36]
[1739928173314,10.03407824,168.07,168.03,175.36]
[1739928174013,10.03407824,168.07,168.03,181.3112]
[1739928174620,10.06407824,168.08,168.03,181.3112]
[1739928175132,0.03,168.08,168.04,10.03407824]
[1739928176309,0.03,168.08,168.05,5.9506]
[1739928177203,0.03,168.08,168.05,15.98467824]
[1739928177403,0.03,168.08,168.05,5.9506]
[1739928181239,10.03407824,168.06,168.03,94.46]
[1739928181539,10.03407824,168.04,168.03,94.46]
[1739928182509,15.98497824,168.04,168.03,94.46]
[1739928182829,217.2,168.03,168.02,0.063]
[1739928183135,21.0,168.01,168.0,0.063]
[1739928183299,10.03407824,167.98,167.97,37.11836445]
[1739928184112,10.03407824,167.98,167.94,94.46]
[1739928184426,10.03407824,167.95,167.94,94.46]
[1739928184609,15.71062328,167.95,167.94,94.46]
[1739928185835,21.66492328,167.95,167.89,5.971]
[1739928186020,15.71062328,167.9,167.89,5.971]
[1739928186219,15.71062328,167.9,167.85,94.543]
[1739928186529,15.71062328,167.86,167.85,94.543]
[1739928187224,15.71062328,167.86,167.85,0.063]
[1739928187816,21.66792328,167.86,167.85,0.063]
[1739928189218,104.36792328,167.86,167.85,0.063]
[1739928190737,156.16792328,167.86,167.85,0.063]
[1739928191037,20.0,167.84,167.83,0.063]
[1739928191239,50.2400759,167.84,167.83,0.063]
[1739928191635,56.1980759,167.84,167.83,0.063]
[1739928191835,42.78622737,167.84,167.83,0.063]
[1739928192414,15.71062328,167.84,167.83,0.063]
[1739928192618,16.82805494,167.85,167.83,0.063]
[1739928193019,15.71062328,167.84,167.83,0.063]
[1739928193439,21.66862328,167.84,167.83,0.063]
[1739928194548,156.16862328,167.84,167.83,0.063]
[1739928194849,20.0,167.81,167.76,94.5]
[1739928195027,20.0,167.81,167.74,0.063]
[1739928195028,15.71062328,167.77,167.74,0.063]
[1739928195228,15.71062328,167.75,167.74,0.063]
[1739928195619,21.67182328,167.75,167.74,0.063]
[1739928195946,15.71062328,167.75,167.74,0.063]
[1739928196139,21.67182328,167.75,167.74,0.063]
[1739928196928,19.96262819,167.75,167.74,0.063]
[1739928198336,14.00142819,167.77,167.74,0.063]
[1739928198537,14.00142819,167.78,167.74,0.063]
[1739928198843,21.07944424,167.78,167.74,0.063]
[1739928199012,14.00142819,167.77,167.74,0.063]
[1739928199416,82.7,167.76,167.74,0.063]
[1739928201713,82.7,167.8,167.74,14.06442819]
[1739928201917,14.00142819,167.83,167.76,14.00142819]
[1739928202730,96.70142819,167.84,167.78,14.00142819]
[1739928203133,14.00142819,167.82,167.77,5.9605]
[1739928203841,1.11726684,167.85,167.77,86.8605]
[1739928204042,82.7,167.87,167.8,14.00142819]
[1739928204214,14.00142819,167.86,167.8,14.00142819]
[1739928204420,14.00142819,167.86,167.79,18.78142819]
[1739928204940,14.00142819,167.86,167.8,5.9594]
[1739928206643,14.00142819,167.86,167.74,0.063]
[1739928206644,14.00142819,167.81,167.74,0.063]
[1739928206846,14.00142819,167.76,167.74,0.063]
[1739928207334,14.00142819,167.75,167.74,0.063]
[1739928207851,14.00142819,167.76,167.74,0.063]
[1739928208348,14.00142819,167.75,167.74,0.063]
[1739928209851,14.00142819,167.76,167.74,0.063]
[1739928210550,0.03,167.83,167.75,34.00142819]
[1739928210857,0.03,167.83,167.77,14.00142819]
[1739928211041,14.03142819,167.83,167.77,4.78]
[1739928211434,0.03,167.83,167.78,19.96152819]
[1739928211637,0.03,167.83,167.78,26.07532819]
[1739928212026,0.03,167.83,167.78,12.0739]
[1739928213450,0.03,167.83,167.78,26.07532819]
[1739928214663,0.03,167.83,167.78,12.0739]
[1739928215246,14.03142819,167.83,167.78,12.0739]
[1739928216157,0.03,167.83,167.78,12.0739]
[1739928219170,0.03,167.83,167.78,26.07532819]
[1739928221051,0.03,167.83,167.78,12.0739]
[1739928221279,0.03,167.83,167.78,26.07532819]
[1739928221582,0.03,167.83,167.79,19.96122819]
[1739928222562,0.03,167.83,167.82,34.00142819]
[1739928223456,82.7,167.9,167.82,128.31327672]
[1739928223674,82.7,167.9,167.86,14.00142819]
[1739928224050,82.7,167.9,167.87,14.00142819]
[1739928224671,82.7,167.94,167.88,14.00142819]
[1739928224859,82.7,167.94,167.89,14.00142819]
[1739928225255,96.70142819,167.94,167.88,14.00142819]
[1739928225571,14.00142819,167.93,167.87,20.25182819]
[1739928225965,14.00142819,167.93,167.87,6.2504]
[1739928226870,14.00142819,167.93,167.88,5.9566]
[1739928227493,96.70142819,167.94,167.88,5.9566]
[1739928228292,82.7,167.94,167.88,5.9566]
[1739928228592,96.70142819,167.94,167.88,5.9566]
[1739928228889,96.70142819,167.94,167.88,5.9265074]
[1739928229465,14.00142819,167.93,167.87,6.2504]
[1739928229776,14.00142819,167.92,167.87,6.2504]
[1739928229979,14.00142819,167.92,167.87,12.2073]
[1739928230585,14.00142819,167.9,167.85,1.6348]
[1739928230775,14.00142819,167.89,167.84,5.9578]
[1739928231471,14.00142819,167.88,167.84,5.9578]
[1739928231671,14.00142819,167.88,167.83,10.8786]
[1739928231866,14.00142819,167.88,167.83,6.0986]
[1739928232181,14.00142819,167.86,167.81,1.6639]
[1739928232768,82.7,167.89,167.83,14.00142819]
[1739928232966,82.7,167.89,167.85,14.00142819]
[1739928233163,96.70142819,167.92,167.85,14.00142819]
[1739928233365,96.70142819,167.92,167.86,5.9573]
[1739928233603,82.7,167.94,167.88,14.00142819]
[1739928234781,82.73,167.94,167.88,14.00142819]
[1739928235370,96.73142819,167.94,167.89,5.9562]
[1739928236774,82.73,167.94,167.89,5.9562]
[1739928236978,82.73,167.94,167.89,19.95762819]
[1739928237178,0.03,167.94,167.9,15.52322819]
[1739928237567,0.03,167.94,167.91,5.9555]
[1739928238099,0.03,167.94,167.91,100.85692819]
[1739928238395,0.03,167.94,167.91,86.8555]
[1739928238600,14.03142819,167.94,167.91,80.9]
[1739928239502,0.03,167.94,167.91,80.9]
[1739928240290,0.03,167.94,167.93,34.00142819]
[1739928240495,0.03,167.94,167.93,47.41327672]
[1739928240668,0.03,167.94,167.93,27.41327672]
[1739928241702,0.03,167.94,167.93,39.94377672]
[1739928241900,0.03,168.0,167.97,19.95482819]